bitfinex-derivatives/quotes_SOLF0:USTF0_20241010
["timestamp","ask_amount","ask_price","bid_price","bid_amount"]
[1728577099058,0.12502,138.35,138.3,2.8243]
[1728577099261,3.6179,138.33,138.31,6.2622199]
[1728577099567,3.6179,138.33,138.3,6.4429]
[1728577099764,3.6179,138.33,138.31,11.61774578]
[1728577099964,3.6179,138.33,138.31,3.6184]
[1728577100863,0.12502,138.35,138.3,6.4428]
[1728577101062,3.6183,138.32,138.31,11.61683394]
[1728577101364,3.6183,138.32,138.27,18.7552]
[1728577101568,3.6184,138.32,138.29,3.6189]
[1728577101761,3.6184,138.32,138.3,11.61992553]
[1728577101957,17.38,138.34,138.27,1.3752]
[1728577102266,17.38,138.34,138.28,11.62387841]
[1728577102267,3.619,138.29,138.28,11.62387841]
[1728577102465,14.739,138.29,138.28,5.35754523]
[1728577102667,14.739,138.29,138.28,11.6263626]
[1728577102960,14.739,138.29,138.25,6.4341]
[1728577102961,3.6196,138.27,138.25,6.4341]
[1728577103171,11.12,138.29,138.26,11.63318816]
[1728577103464,11.12,138.29,138.25,2.8141]
[1728577103666,11.12,138.29,138.26,11.63658904]
[1728577103965,3.6191,138.29,138.26,14.7396]
[1728577104360,3.6191,138.29,138.26,3.6196]
[1728577104761,3.64999642,138.3,138.26,3.6196]
[1728577104961,3.6192,138.28,138.26,3.6196]
[1728577106266,3.56579554,138.29,138.23,0.12502]
[1728577106475,17.37,138.28,138.23,0.12502]
[1728577106663,17.37,138.26,138.23,0.12502]
[1728577106862,23.25,138.26,138.23,0.12502]
[1728577107270,3.6203,138.24,138.23,0.12502]
[1728577109671,3.6202,138.25,138.23,0.12502]
[1728577109865,5.88,138.26,138.23,0.12502]
[1728577110969,3.6202,138.25,138.23,0.12502]
[1728577111170,23.20031805,138.3,138.23,0.12502]
[1728577111382,3.57691805,138.3,138.27,3.6194]
[1728577111579,5.88,138.32,138.26,17.37]
[1728577112760,5.88,138.34,138.28,17.37]
[1728577112964,5.88,138.34,138.26,17.37]
[1728577113165,5.88,138.34,138.27,11.64035535]
[1728577113365,5.88,138.34,138.26,17.37]
[1728577113565,3.6183,138.32,138.27,11.64094119]
[1728577113764,5.88,138.34,138.27,17.37]
[1728577113966,9.4978,138.34,138.3,3.6186]
[1728577114170,0.12502,138.35,138.29,17.37]
[1728577114570,0.12502,138.35,138.28,17.37]
[1728577114869,3.6178,138.34,138.3,3.6186]
[1728577115071,0.12502,138.35,138.3,3.6186]
[1728577115267,0.12502,138.35,138.28,17.37]
[1728577115468,3.6178,138.34,138.3,3.6186]
[1728577115865,3.6178,138.34,138.28,17.37]
[1728577116067,3.74262,138.35,138.29,11.63331511]
[1728577116267,3.74262,138.35,138.3,11.63331511]
[1728577116468,3.74262,138.35,138.28,17.37]
[1728577116770,3.74262,138.35,138.3,17.37]
[1728577116771,0.12502,138.35,138.3,17.37]
[1728577117072,0.12502,138.35,138.33,3.6178]
[1728577117277,0.12502,138.35,138.32,17.37]
[1728577117777,0.12502,138.35,138.33,3.6178]
[1728577118272,0.12502,138.35,138.32,17.37]
[1728577119066,0.12502,138.35,138.33,3.6179]
[1728577119971,3.6177,138.34,138.31,6.3387]
[1728577120169,0.12502,138.35,138.31,2.7203]
[1728577121272,3.6178,138.34,138.31,6.3386]
[1728577121672,0.12502,138.35,138.31,2.7203]
[1728577122177,0.12502,138.35,138.33,3.6179]
[1728577122771,0.12502,138.35,138.31,2.7203]
[1728577122772,0.12502,138.35,138.34,3.6177]
[1728577123175,102.60167258,138.38,138.32,17.37]
[1728577123477,106.21827258,138.38,138.32,17.37]
[1728577123672,106.21827258,138.38,138.33,5.35985684]
[1728577123876,106.21827258,138.38,138.32,17.37]
[1728577123877,102.60167258,138.38,138.36,3.6171]
[1728577124175,102.60167258,138.38,138.32,17.37]
[1728577124373,106.21847258,138.38,138.34,3.6174]
[1728577124568,106.21847258,138.38,138.32,17.37]
[1728577125077,106.21847258,138.38,138.35,3.6174]
[1728577126177,3.6165,138.39,138.32,17.37]
[1728577126480,0.12502,138.41,138.36,17.37]
[1728577126780,3.74092,138.41,138.36,17.37]
[1728577127172,0.12502,138.41,138.36,17.37]
[1728577127373,0.12502,138.41,138.4,3.6161]
[1728577132279,3.74102,138.41,138.38,3.6164]
[1728577132472,0.12502,138.41,138.37,2.7434]
[1728577133881,3.6163,138.4,138.37,6.3602]
[1728577135579,0.12502,138.41,138.37,6.3602]
[1728577135779,3.6163,138.4,138.37,6.3602]
[1728577136469,0.12502,138.41,138.37,2.7434]
[1728577138068,3.6162,138.4,138.37,6.3602]
[1728577139574,3.6166,138.38,138.36,1.3527]
[1728577139882,3.6166,138.38,138.35,5.86]
[1728577140084,3.6171,138.37,138.35,5.86]
[1728577140581,3.6164,138.39,138.36,3.617]
[1728577140972,0.12502,138.41,138.34,17.37]
[1728577141172,3.74102,138.41,138.38,3.6164]
[1728577141371,3.74102,138.41,138.36,23.23]
[1728577141372,0.12502,138.41,138.36,23.23]
[1728577141570,0.12502,138.41,138.4,3.6161]
[1728577142485,5.98502,138.47,138.42,3.6154]
[1728577142685,3.56451188,138.46,138.38,17.37]
[1728577142981,3.6152,138.44,138.41,3.6157]
[1728577144385,3.6152,138.44,138.42,3.6156]
[1728577145181,5.98502,138.47,138.4,17.37]
[1728577145381,3.6147,138.46,138.43,3.6153]
[1728577145576,5.98502,138.47,138.43,3.6153]
[1728577145884,3.6152,138.44,138.41,3.6157]
[1728577146678,3.6149,138.45,138.4,23.23]
[1728577146878,9.59793431,138.47,138.4,23.23]
[1728577147186,3.6151,138.44,138.41,3.6156]
[1728577147590,26.96793431,138.47,138.4,5.86]
[1728577147883,3.6157,138.42,138.39,3.6162]
[1728577148187,17.37,138.45,138.37,10.0129]
[1728577149278,3.6155,138.43,138.38,17.37]
[1728577149888,3.6152,138.44,138.37,10.0129]
[1728577150093,17.37,138.46,138.37,10.0129]
[1728577150593,3.6156,138.43,138.4,3.6161]
[1728577151676,3.6152,138.44,138.41,3.6157]
[1728577152084,9.59793431,138.47,138.38,17.37]
[1728577152387,3.6149,138.45,138.42,3.6155]
[1728577152789,3.6149,138.45,138.38,17.37]
[1728577152790,3.6151,138.44,138.38,17.37]
[1728577152982,17.37,138.46,138.4,3.616]
[1728577154988,17.37,138.46,138.38,17.37]
[1728577155290,17.37,138.46,138.37,10.0129]
[1728577155491,17.37,138.46,138.37,4.1529]
[1728577155686,17.37,138.46,138.37,10.0129]
[1728577155885,9.59793431,138.47,138.38,17.37]
[1728577157285,3.6152,138.44,138.41,3.6157]
[1728577157487,9.59793431,138.47,138.38,17.37]
[1728577157992,3.6151,138.44,138.41,3.6157]
[1728577158295,17.37,138.46,138.37,10.0129]
[1728577158500,3.6158,138.42,138.37,10.0129]
[1728577158695,17.37,138.46,138.37,10.0129]
[1728577158991,3.6152,138.44,138.4,3.6161]
[1728577159200,17.37,138.46,138.4,3.6161]
[1728577159598,17.37,138.46,138.38,17.37]
[1728577159786,3.6152,138.44,138.41,3.6157]
[1728577161396,17.37,138.42,138.29,11.05712263]
[1728577161698,17.37,138.39,138.33,5.86]
[1728577161994,3.56580485,138.4,138.33,5.86]
[1728577162187,3.6165,138.39,138.36,3.617]
[1728577162492,3.65620656,138.4,138.33,5.86]
[1728577162692,23.23,138.42,138.33,5.86]
[1728577162994,3.6167,138.38,138.35,3.74222]
[1728577163193,23.23,138.42,138.35,0.12502]
[1728577163492,3.6164,138.39,138.36,3.617]
[1728577165394,3.617,138.37,138.35,0.12502]
[1728577166790,3.617,138.37,138.35,3.74242]
[1728577167395,3.70445135,138.39,138.35,0.12502]
[1728577167596,3.6171,138.36,138.35,0.12502]
[1728577169103,5.86,138.41,138.35,0.12502]
[1728577169500,5.86,138.41,138.36,3.6171]
[1728577171206,3.6162,138.4,138.36,3.6171]
[1728577171408,5.86,138.41,138.36,3.6171]
[1728577171603,17.37,138.4,138.35,0.12502]
[1728577171812,3.6167,138.38,138.35,0.12502]
[1728577172306,3.6167,138.38,138.35,3.74232]
[1728577173606,20.96004322,138.4,138.35,0.12502]
[1728577173806,44.94,138.41,138.35,0.12502]
[1728577174004,17.37,138.36,138.29,0.12502]
[1728577174301,17.37,138.33,138.29,0.12502]
[1728577174908,23.23,138.35,138.29,0.12502]
[1728577175104,3.6181,138.33,138.3,3.6186]
[1728577175410,1.6469,138.38,138.29,17.49502]
[1728577175411,5.86,138.36,138.29,17.49502]
[1728577175609,3.6176,138.35,138.31,3.6183]
[1728577175814,5.86,138.36,138.29,17.49502]
[1728577176205,9.4774,138.36,138.32,3.6181]
[1728577176412,5.86,138.36,138.32,3.6181]
[1728577176803,17.37,138.35,138.29,0.12502]
[1728577178805,3.6184,138.32,138.29,0.12502]
[1728577179511,3.6184,138.32,138.29,3.74392]
[1728577180013,3.6184,138.32,138.3,3.6187]
[1728577180213,3.6184,138.32,138.29,0.12502]
[1728577180214,21.00233441,138.37,138.29,0.12502]
[1728577180415,3.6176,138.35,138.29,17.49502]
[1728577180916,3.618,138.33,138.31,3.6183]
[1728577181810,3.6176,138.35,138.32,3.6181]
[1728577182405,20.99183947,138.37,138.29,17.49502]
[1728577182611,9.4773,138.36,138.33,3.6179]
[1728577183609,3.6173,138.36,138.33,3.6179]
[1728577183916,9.48183947,138.37,138.31,1.391]
[1728577184214,3.6175,138.35,138.32,3.6181]
[1728577187517,3.6178,138.34,138.31,5.0094]
[1728577187906,9.48183947,138.37,138.31,5.0094]
[1728577188107,9.48183947,138.37,138.29,0.12502]
[1728577188108,17.37,138.34,138.29,0.12502]
[1728577188308,17.37,138.32,138.29,0.12502]
[1728577188510,3.6187,138.3,138.29,0.12502]
[1728577192107,21.04495922,138.31,138.23,0.12502]
[1728577192315,17.37,138.28,138.23,0.12502]
[1728577192614,17.37,138.26,138.23,0.12502]
[1728577192810,3.6202,138.25,138.23,0.12502]
[1728577193722,9.4799,138.26,138.23,0.12502]
[1728577193916,5.86,138.26,138.23,0.12502]
[1728577194220,3.6201,138.25,138.23,0.12502]
[1728577195113,9.4799,138.26,138.23,0.12502]
[1728577195509,9.4799,138.26,138.23,3.74552]
[1728577197116,106.17637581,138.32,138.23,0.12502]
[1728577197320,5.86,138.31,138.24,17.37]
[1728577197623,5.86,138.31,138.25,1.3529]
[1728577198319,3.6186,138.31,138.25,1.3529]
[1728577198523,5.86,138.31,138.25,1.3529]
[1728577199419,3.6187,138.3,138.28,3.6192]
[1728577200319,106.17637581,138.32,138.28,3.6192]
[1728577200625,5.86,138.32,138.29,3.6188]
[1728577201016,9.4783,138.32,138.3,3.6186]
[1728577201325,9.51964015,138.33,138.3,3.6186]
[1728577201523,3.6185,138.31,138.26,1.352]
[1728577201722,3.6185,138.31,138.25,7.2129]
[1728577201723,3.62019189,138.31,138.25,1.3529]
[1728577202027,3.6192,138.29,138.25,1.3529]
[1728577202524,17.37,138.32,138.25,1.3529]
[1728577202729,3.6188,138.3,138.27,3.6193]
[1728577203121,5.86,138.33,138.25,18.7229]
[1728577203420,3.6185,138.31,138.25,18.7229]
[1728577203726,3.6185,138.31,138.28,3.619]
[1728577203921,3.6185,138.31,138.25,18.7229]
[1728577204322,9.458,138.33,138.31,3.6184]
[1728577204627,5.84,138.33,138.26,23.21]
[1728577205617,3.6182,138.32,138.26,23.21]
[1728577206328,3.6182,138.32,138.29,3.6187]
[1728577206516,3.6186,138.31,138.29,3.6187]
[1728577207029,3.6186,138.31,138.28,3.6191]
[1728577207832,3.6186,138.31,138.29,3.6189]
[1728577208336,5.96502,138.35,138.28,17.37]
[1728577208822,5.96502,138.35,138.26,23.21]
[1728577209025,3.6184,138.32,138.29,3.6189]
[1728577209220,5.96502,138.35,138.29,3.6189]
[1728577209728,3.6184,138.32,138.29,3.6189]
[1728577210028,3.6184,138.32,138.26,23.21]
[1728577210236,3.6184,138.32,138.3,3.6186]
[1728577210830,3.6184,138.32,138.26,23.21]
[1728577211027,17.37,138.34,138.26,5.84]
[1728577211423,17.37,138.34,138.29,3.6188]
[1728577211828,3.6183,138.32,138.29,3.6188]
[1728577212041,3.6183,138.32,138.26,17.37]
[1728577212235,5.96502,138.35,138.26,17.37]
[1728577212534,3.6179,138.33,138.26,17.37]
[1728577212734,5.96502,138.35,138.26,17.37]
[1728577212735,17.37,138.34,138.28,3.6191]
[1728577213235,3.6186,138.31,138.29,3.6189]
[1728577213735,3.6183,138.32,138.26,17.37]
[1728577214033,17.37,138.34,138.26,17.37]
[1728577214332,5.96502,138.35,138.33,3.6177]
[1728577214333,0.12502,138.35,138.33,3.6177]
[1728577214530,0.12502,138.35,138.32,17.37]
[1728577214931,0.12502,138.35,138.34,3.6177]
[1728577215130,0.12502,138.35,138.31,3.9835]
[1728577216236,0.12502,138.35,138.34,3.6177]
[1728577218345,102.59551025,138.39,138.36,3.6169]
[1728577218938,106.21201025,138.39,138.36,3.6169]
[1728577219237,5.96502,138.41,138.36,3.6169]
[1728577219941,5.96502,138.41,138.32,17.37]
[1728577220145,3.6166,138.38,138.35,3.6172]
[1728577220639,3.6169,138.37,138.34,3.6176]
[1728577220837,3.55975424,138.38,138.32,17.37]
[1728577221036,17.37,138.35,138.31,2.6613]
[1728577221239,17.37,138.33,138.29,0.12502]
[1728577222142,3.6184,138.32,138.29,3.74392]
[1728577222334,17.37,138.33,138.29,0.12502]
[1728577222531,3.59484531,138.34,138.29,0.12502]
[1728577222737,3.6182,138.33,138.3,3.6187]
[1728577223037,17.37,138.33,138.29,0.12502]
[1728577224233,3.6187,138.3,138.29,0.12502]
[1728577225332,3.6186,138.31,138.29,0.12502]
[1728577226341,3.6187,138.3,138.29,0.12502]
[1728577232235,20.9887,138.3,138.29,0.12502]
[1728577232544,17.37,138.3,138.23,0.12502]
[1728577232749,17.37,138.27,138.24,11.64131349]
[1728577232941,5.84,138.26,138.23,0.12502]
[1728577233242,9.53899399,138.26,138.23,0.12502]
[1728577234050,3.6203,138.24,138.23,0.12502]
[1728577237243,9.4603,138.24,138.23,0.12502]
[1728577246572,3.6208,138.22,138.17,0.12502]
[1728577246868,17.37,138.22,138.17,0.12502]
[1728577247061,5.84,138.24,138.17,0.12502]
[1728577247062,17.37,138.23,138.17,0.12502]
[1728577247458,3.6213,138.21,138.17,3.74702]
[1728577247656,17.37,138.22,138.17,0.12502]
[1728577247856,17.37,138.2,138.17,0.12502]
[1728577248058,5.84,138.19,138.17,0.12502]
[1728577248256,3.6219,138.18,138.17,0.12502]
[1728577252661,13.13604148,138.19,138.17,0.12502]
[1728577252863,9.4617,138.19,138.17,0.12502]
[1728577253058,5.84,138.19,138.17,0.12502]
[1728577253362,9.4618,138.19,138.17,0.12502]
[1728577254271,5.84,138.19,138.17,0.12502]
[1728577255065,5.84,138.19,138.18,3.6219]
[1728577255763,9.4611,138.21,138.18,3.6219]
[1728577257171,3.6218,138.19,138.17,0.12502]
[1728577257371,5.84,138.21,138.17,0.12502]
[1728577257760,3.6217,138.19,138.17,0.12502]
[1728577257963,5.84,138.21,138.17,0.12502]
[1728577258374,9.4612,138.21,138.18,3.6217]
[1728577258968,3.6218,138.19,138.17,0.12502]
[1728577259576,3.6218,138.19,138.17,3.74712]
[1728577262177,3.6219,138.18,138.17,0.12502]
[1728577262366,20.9919,138.18,138.17,0.12502]
[1728577262775,24.69692496,138.18,138.17,0.12502]
[1728577264476,7.32692496,138.18,138.17,0.12502]
[1728577265081,24.69692496,138.18,138.17,0.12502]
[1728577268282,21.07502496,138.18,138.12,1.52238]
[1728577268483,17.37,138.15,138.12,0.12518]
[1728577269287,3.6231,138.14,138.12,0.12518]
[1728577269789,17.37,138.16,138.12,0.12518]
[1728577269995,3.6225,138.16,138.13,3.6229]
[1728577270284,5.84,138.17,138.13,3.6229]
[1728577270480,5.84,138.17,138.12,0.12518]
[1728577270781,3.6225,138.16,138.12,0.12518]
[1728577271176,3.6227,138.15,138.12,3.74848]
[1728577271877,5.84,138.16,138.12,0.12518]
[1728577272077,9.4625,138.16,138.13,3.6231]
[1728577272789,20.6025,138.16,138.13,3.6231]
[1728577272987,11.14,138.16,138.14,3.6229]
[1728577273185,20.6023,138.17,138.12,11.26518]
[1728577273888,11.14,138.17,138.12,11.26518]
[1728577274083,11.14,138.17,138.15,3.6225]
[1728577274987,14.7621,138.17,138.14,3.6228]
[1728577275994,11.14,138.16,138.12,0.12518]
[1728577276187,3.6228,138.15,138.12,0.12518]
[1728577276690,3.6228,138.15,138.12,3.74838]
[1728577277095,3.6228,138.15,138.12,0.12518]
[1728577277291,3.6228,138.15,138.13,3.6231]
[1728577278403,11.14,138.14,138.12,0.12518]
[1728577278799,14.7632,138.13,138.12,0.12518]
[1728577279597,3.6232,138.13,138.12,0.12518]
[1728577282006,14.7632,138.13,138.12,0.12518]
[1728577284796,3.70502496,138.18,138.12,0.12518]
[1728577284994,5.84,138.17,138.12,11.26518]
[1728577285206,13.08394902,138.17,138.14,3.6228]
[1728577285412,9.46164902,138.17,138.14,3.6228]
[1728577285896,3.6225,138.16,138.14,3.6228]
[1728577286808,13.08384902,138.17,138.14,3.6228]
[1728577287410,9.4622,138.17,138.15,3.6226]
[1728577287597,9.4622,138.17,138.12,11.26518]
[1728577287598,14.7113306,138.19,138.14,11.14]
[1728577287802,5.84,138.18,138.14,11.14]
[1728577288208,3.6223,138.17,138.14,11.14]
[1728577288406,5.84,138.18,138.14,11.14]
[1728577288806,5.84,138.18,138.15,11.14]
[1728577289604,16.98,138.18,138.12,0.12518]
[1728577289802,16.98,138.18,138.13,11.14]
[1728577290107,20.602,138.18,138.15,3.6225]
[1728577290310,20.602,138.18,138.14,11.14]
[1728577291211,20.602,138.18,138.15,3.6226]
[1728577291614,3.6221,138.17,138.15,3.6226]
[1728577292314,3.6226,138.15,138.13,3.6229]
[1728577294715,11.14,138.16,138.13,3.6229]
[1728577294913,14.7625,138.16,138.13,3.6229]
[1728577295619,11.14,138.16,138.13,3.6229]
[1728577295815,11.14,138.17,138.13,3.6229]
[1728577296015,3.58871992,138.19,138.16,3.6224]
[1728577296216,11.14,138.18,138.16,3.6224]
[1728577296412,5.84,138.19,138.16,3.6224]
[1728577296617,16.98,138.19,138.16,3.6224]
[1728577296924,16.98,138.19,138.15,3.6225]
[1728577297813,3.622,138.18,138.15,3.6225]
[1728577299417,16.98,138.19,138.14,3.6227]
[1728577299418,3.6223,138.17,138.14,3.6227]
[1728577299623,14.7623,138.17,138.14,3.6227]
[1728577299920,3.58736952,138.18,138.13,11.14]
[1728577300218,14.7623,138.17,138.14,3.6227]
[1728577302818,3.6225,138.16,138.14,3.6227]
[1728577303219,16.98,138.19,138.14,11.14]
[1728577303416,102.72322907,138.21,138.15,11.14]
[1728577303614,11.26502,138.23,138.19,11.14]
[1728577303821,3.6209,138.22,138.2,3.6212]
[1728577304614,17.10502,138.23,138.13,13.0863]
[1728577304821,3.6211,138.21,138.19,3.6215]
[1728577305020,11.14,138.21,138.16,11.14]
[1728577305227,3.6215,138.2,138.17,15.22686322]
[1728577305421,3.6215,138.2,138.17,11.60496322]
[1728577305626,0.12502,138.23,138.18,11.14]
[1728577305927,0.12502,138.23,138.21,11.14]
[1728577306123,5.84,138.27,138.22,11.14]
[1728577306616,9.50552273,138.27,138.22,11.14]
[1728577307128,13.12522273,138.27,138.23,3.6204]
[1728577307419,5.84,138.27,138.23,11.14]
[1728577307925,0.12502,138.29,138.26,11.14]
[1728577308130,11.14,138.28,138.22,14.0125]
[1728577308321,11.14,138.27,138.22,2.8725]
[1728577308519,3.6197,138.27,138.22,6.4932]
[1728577308821,17.38,138.28,138.22,6.4932]
[1728577309226,3.6199,138.26,138.23,3.6205]
[1728577309721,17.38,138.28,138.23,3.6205]
[1728577309928,3.6196,138.27,138.23,3.6205]
[1728577310729,3.6196,138.27,138.24,3.6203]
[1728577311530,0.12502,138.29,138.22,2.8725]
[1728577311725,0.12502,138.29,138.22,20.2525]
[1728577311926,0.12502,138.29,138.23,1.3695]
[1728577312433,0.12502,138.29,138.27,3.6193]
[1728577313431,0.12502,138.29,138.26,3.6197]
[1728577313732,3.74402,138.29,138.26,3.6197]
[1728577315223,0.12502,138.29,138.23,1.3695]
[1728577315429,3.6194,138.28,138.23,1.3695]
[1728577315833,3.6194,138.28,138.25,3.6198]
[1728577317229,3.6194,138.28,138.26,3.6197]
[1728577319129,0.12502,138.29,138.23,7.2095]
[1728577319329,3.6196,138.27,138.25,3.62]
[1728577319832,3.6194,138.28,138.25,3.62]
[1728577320337,3.6194,138.28,138.23,7.2095]
[1728577320541,3.6194,138.28,138.26,3.6197]
[1728577320746,3.6196,138.27,138.23,7.2095]
[1728577320945,0.12502,138.29,138.24,3.6201]
[1728577321349,0.12502,138.29,138.22,2.8725]
[1728577321647,0.12502,138.29,138.23,3.6204]
[1728577321848,3.6199,138.26,138.23,3.6204]
[1728577322040,3.60297736,138.27,138.22,2.8725]
[1728577322240,5.82,138.27,138.22,2.8725]
[1728577322441,5.82,138.27,138.2,23.22]
[1728577322442,3.6205,138.24,138.2,23.22]
[1728577322648,3.6205,138.24,138.21,3.621]
[1728577322849,3.6205,138.24,138.2,23.22]
[1728577323438,3.6205,138.24,138.22,3.6207]
[1728577324244,0.12502,138.29,138.2,23.22]
[1728577324555,0.12502,138.29,138.24,17.38]
[1728577324738,0.12502,138.29,138.26,3.6197]
[1728577324946,0.12502,138.29,138.25,2.7194]
[1728577325442,0.12502,138.29,138.28,3.6192]
[1728577327949,3.6184,138.32,138.29,3.6188]
[1728577328145,106.21765624,138.34,138.28,17.38]
[1728577328342,3.618,138.33,138.28,17.38]
[1728577328750,106.21765624,138.34,138.28,17.38]
[1728577329043,3.6181,138.33,138.28,17.38]
[1728577329252,3.6181,138.33,138.3,3.6186]
[1728577329448,3.6183,138.32,138.3,3.6186]
[1728577330059,106.21765624,138.34,138.3,3.6186]
[1728577330360,3.6181,138.33,138.3,3.6186]
[1728577330955,102.62281093,138.34,138.31,17.38]
[1728577331147,0.12502,138.35,138.31,17.38]
[1728577332064,0.12502,138.35,138.33,3.6178]
[1728577332359,0.12502,138.35,138.32,1.422]
[1728577332548,0.12502,138.35,138.33,3.6179]
[1728577332756,0.12502,138.35,138.25,1.3997]
[1728577332947,0.12502,138.35,138.27,18.7436]
[1728577333163,3.6183,138.32,138.29,3.619]
[1728577333758,3.618,138.33,138.3,3.6187]
[1728577333960,0.12502,138.35,138.3,17.38]
[1728577334359,0.12502,138.35,138.32,17.38]
[1728577334761,0.12502,138.35,138.33,1.3636]
[1728577335857,0.12502,138.35,138.33,4.9814]
[1728577337067,0.12502,138.35,138.34,3.6177]
[1728577337263,0.12502,138.35,138.33,1.3636]
[1728577337759,0.12502,138.35,138.33,4.9814]
[1728577337955,3.6177,138.34,138.31,18.7459]
[1728577338665,3.74262,138.35,138.32,3.618]
[1728577339666,0.12502,138.35,138.32,3.618]
[1728577339870,3.6177,138.34,138.32,3.618]
[1728577340371,3.6178,138.34,138.31,22.3642]
[1728577340668,0.12502,138.35,138.29,17.38]
[1728577340859,3.6179,138.34,138.3,3.6186]
[1728577341064,0.12502,138.35,138.3,3.6186]
[1728577341468,3.6181,138.33,138.31,3.6184]
[1728577341969,3.6179,138.34,138.32,3.6182]
[1728577343262,0.12502,138.35,138.29,17.38]
[1728577343668,0.12502,138.35,138.32,3.6182]
[1728577343669,3.6178,138.34,138.32,3.6182]
[1728577345263,0.12502,138.35,138.3,17.38]
[1728577345472,0.12502,138.35,138.33,17.38]
[1728577346373,0.12502,138.35,138.34,3.6177]
[1728577346871,0.12502,138.35,138.34,20.9977]
[1728577347166,0.12502,138.41,138.34,17.38]
[1728577347366,0.12502,138.41,138.33,17.38]
[1728577347367,0.12502,138.41,138.37,17.38]
[1728577348070,3.74102,138.41,138.38,3.6165]
[1728577348469,0.12502,138.41,138.37,17.38]
[1728577348676,0.12502,138.41,138.39,3.6163]
[1728577349164,0.12502,138.41,138.37,17.38]
[1728577349367,0.12502,138.41,138.4,3.6161]
[1728577350766,0.12502,138.47,138.39,17.38]
[1728577350973,0.12502,138.47,138.36,5.82]
[1728577350974,3.6149,138.45,138.42,3.6154]
[1728577352080,3.6149,138.45,138.41,17.38]
[1728577352081,0.12502,138.47,138.41,17.38]
[1728577352265,0.12502,138.47,138.41,18.8013]
[1728577353074,3.73942,138.47,138.44,3.615]
[1728577353479,3.6146,138.46,138.43,3.6152]
[1728577353879,3.6146,138.46,138.41,18.8013]
[1728577355066,3.6146,138.46,138.43,3.6152]
[1728577355870,3.6151,138.44,138.42,3.6155]
[1728577356071,3.6151,138.44,138.4,7.2133]
[1728577356573,17.50502,138.47,138.38,17.38]
[1728577357681,17.50502,138.47,138.4,3.6161]
[1728577357882,17.50502,138.47,138.4,17.38]
[1728577358469,17.50502,138.47,138.41,3.6156]
[1728577359077,0.12502,138.47,138.4,17.38]
[1728577359380,5.94502,138.47,138.41,17.38]
[1728577359577,0.12502,138.47,138.42,1.3668]
[1728577359779,0.12502,138.47,138.45,17.38]
[1728577359979,66.37166931,138.64,138.45,17.38]
[1728577359980,9.60447701,138.53,138.45,17.38]
[1728577360286,9.55792,138.53,138.5,3.6134]
[1728577360490,9.55792,138.53,138.5,17.38]
[1728577360491,0.12502,138.53,138.5,17.38]
[1728577360686,0.12502,138.53,138.52,17.38]
[1728577360885,0.12502,138.53,138.52,20.993]
[1728577362384,0.12502,138.53,138.5,21.5406]
[1728577362576,0.12502,138.53,138.52,17.38]
[1728577362982,0.12502,138.53,138.52,20.993]
[1728577366488,3.6119,138.57,138.54,3.6123]
[1728577366683,3.6119,138.57,138.5,4.1606]